[Event "December 5 Early 2023"]
[Site "https://www.chess.com"]
[Date "2023.12.05"]
[Round "9"]
[White "Zou, Chen"]
[Black "Demchenko, Anton"]
[Result "1/2-1/2"]
[Board "26"]
[TimeControl "180+1"]
[WhiteFideId "8610959"]
[BlackFideId "4160258"]
[WhiteElo "2750"]
[BlackElo "2900"]
[WhiteTeam "CHN"]
[BlackTeam "SLO"]
[WhiteClock "0:00:05"]
[BlackClock "0:00:09"]

1. e4 {[%clk 0:03:00]}  e5 {[%clk 0:02:59]} 2. Nf3 {[%clk 0:03:01]}  Nc6 {[%clk 0:03:00]} 3. Bb5 {[%clk 0:03:01]}  a6 {[%clk 0:03:00]} 4. Ba4 {[%clk 0:03:01]}  Nge7 {[%clk 0:03:01]} 5. c3 {[%clk 0:03:00]}  Ng6 {[%clk 0:03:00]} 6. O-O {[%clk 0:03:00]}  d6 {[%clk 0:03:01]} 7. d4 {[%clk 0:03:00]}  Bd7 {[%clk 0:03:01]} 8. Bc2 {[%clk 0:03:00]}  Be7 {[%clk 0:03:01]} 9. Re1 {[%clk 0:02:59]}  O-O {[%clk 0:03:02]} 10. h3 {[%clk 0:02:59]}  Qc8 {[%clk 0:02:48]} 11. Nbd2 {[%clk 0:02:56]}  Kh8 {[%clk 0:02:44]} 12. Nf1 {[%clk 0:02:56]}  f5 {[%clk 0:02:44]} 13. exf5 {[%clk 0:02:56]}  Bxf5 {[%clk 0:02:45]} 14. Bxf5 {[%clk 0:02:56]}  Qxf5 {[%clk 0:02:45]} 15. Ng3 {[%clk 0:02:57]}  Qf7 {[%clk 0:02:45]} 16. Be3 {[%clk 0:02:53]}  d5 {[%clk 0:02:12]} 17. dxe5 {[%clk 0:02:40]}  Ncxe5 {[%clk 0:02:12]} 18. Nxe5 {[%clk 0:02:41]}  Nxe5 {[%clk 0:02:12]} 19. Bd4 {[%clk 0:02:42]}  Nc6 {[%clk 0:02:10]} 20. Be3 {[%clk 0:02:19]}  Rae8 {[%clk 0:02:09]} 21. Qh5 {[%clk 0:02:12]}  Bd6 {[%clk 0:01:52]} 22. Qxf7 {[%clk 0:02:12]}  Rxf7 {[%clk 0:01:52]} 23. Nf1 {[%clk 0:02:10]}  Ne5 {[%clk 0:01:39]} 24. Rad1 {[%clk 0:02:08]}  c6 {[%clk 0:01:39]} 25. Bd4 {[%clk 0:01:58]}  Rfe7 {[%clk 0:01:39]} 26. Bxe5 {[%clk 0:01:58]}  Rxe5 {[%clk 0:01:38]} 27. Rxe5 {[%clk 0:01:56]}  Bxe5 {[%clk 0:01:27]} 28. Nd2 {[%clk 0:01:49]}  Kg8 {[%clk 0:01:25]} 29. Kf1 {[%clk 0:01:49]}  Kf7 {[%clk 0:01:25]} 30. Re1 {[%clk 0:01:49]}  Bf6 {[%clk 0:01:22]} 31. Rxe8 {[%clk 0:01:49]}  Kxe8 {[%clk 0:01:22]} 32. Ke2 {[%clk 0:01:49]}  Kd7 {[%clk 0:01:20]} 33. Kd3 {[%clk 0:01:50]}  c5 {[%clk 0:01:15]} 34. b3 {[%clk 0:01:48]}  b5 {[%clk 0:01:14]} 35. f4 {[%clk 0:01:17]}  c4+ {[%clk 0:01:12]} 36. Kc2 {[%clk 0:01:15]}  g6 {[%clk 0:01:02]} 37. g4 {[%clk 0:01:16]}  Ke6 {[%clk 0:01:00]} 38. Nf3 {[%clk 0:01:04]}  Kd6 {[%clk 0:00:57]} 39. b4 {[%clk 0:00:49]}  d4 {[%clk 0:00:43]} 40. Nxd4 {[%clk 0:00:48]}  Kd5 {[%clk 0:00:37]} 41. f5 {[%clk 0:00:35]}  Ke4 {[%clk 0:00:27]} 42. fxg6 {[%clk 0:00:32]}  hxg6 {[%clk 0:00:28]} 43. Ne6 {[%clk 0:00:31]}  Kf3 {[%clk 0:00:25]} 44. Nc7 {[%clk 0:00:13]}  Kg3 {[%clk 0:00:25]} 45. Nxa6 {[%clk 0:00:13]}  Be5 {[%clk 0:00:26]} 46. Nc5 {[%clk 0:00:08]}  Kxh3 {[%clk 0:00:26]} 47. g5 {[%clk 0:00:05]}  Kg4 {[%clk 0:00:25]} 48. Ne6 {[%clk 0:00:04]}  Kf5 {[%clk 0:00:17]} 49. Nc5 {[%clk 0:00:02]}  Kxg5 {[%clk 0:00:16]} 50. a4 {[%clk 0:00:01]}  bxa4 {[%clk 0:00:16]} 51. Nxa4 {[%clk 0:00:02]}  Kf4 {[%clk 0:00:16]} 52. Kd2 {[%clk 0:00:02]}  Kf3 {[%clk 0:00:15]} 53. Ke1 {[%clk 0:00:03]}  Ke3 {[%clk 0:00:14]} 54. b5 {[%clk 0:00:03]}  Kd3 {[%clk 0:00:15]} 55. b6 {[%clk 0:00:03]}  g5 {[%clk 0:00:15]} 56. Kf1 {[%clk 0:00:04]}  Kc2 {[%clk 0:00:14]} 57. b7 {[%clk 0:00:04]}  Kb3 {[%clk 0:00:13]} 58. Nb6 {[%clk 0:00:04]}  Kxc3 {[%clk 0:00:13]} 59. Kg2 {[%clk 0:00:05]}  Kd3 {[%clk 0:00:12]} 60. Nxc4 {[%clk 0:00:04]}  Kxc4 {[%clk 0:00:12]} 61. Kf3 {[%clk 0:00:05]}  Kd5 {[%clk 0:00:09]} 62. Kg4 {[%clk 0:00:05]}  Kc6 {[%clk 0:00:09]} 63. Kxg5 {[%clk 0:00:05]}  Kxb7 {[%clk 0:00:09]} 1/2-1/2

[Event "December 5 Early 2023"]
[Site "https://www.chess.com"]
[Date "2023.12.05"]
[Round "9"]
[White "Baskakov, Egor"]
[Black "Miladinovic, Igor"]
[Result "1/2-1/2"]
[Board "27"]
[TimeControl "180+1"]
[WhiteFideId "24197866"]
[BlackFideId "4203380"]
[WhiteElo "2890"]
[BlackElo "2802"]
[WhiteTeam "RUS"]
[BlackTeam "SRB"]
[WhiteClock "0:00:08"]
[BlackClock "0:00:10"]

1. e4 {[%clk 0:03:00]}  c5 {[%clk 0:02:59]} 2. Nf3 {[%clk 0:03:00]}  Nc6 {[%clk 0:02:59]} 3. Nc3 {[%clk 0:03:00]}  e6 {[%clk 0:02:59]} 4. Be2 {[%clk 0:02:59]}  a6 {[%clk 0:02:58]} 5. a4 {[%clk 0:02:58]}  Qc7 {[%clk 0:02:58]} 6. O-O {[%clk 0:02:58]}  Nf6 {[%clk 0:02:59]} 7. d4 {[%clk 0:02:58]}  cxd4 {[%clk 0:02:58]} 8. Nxd4 {[%clk 0:02:59]}  Bd6 {[%clk 0:02:58]} 9. h3 {[%clk 0:02:55]}  Nxd4 {[%clk 0:02:56]} 10. Qxd4 {[%clk 0:02:54]}  b6 {[%clk 0:02:56]} 11. Be3 {[%clk 0:02:49]}  Rb8 {[%clk 0:02:49]} 12. Rad1 {[%clk 0:02:47]}  Be5 {[%clk 0:02:47]} 13. Qb4 {[%clk 0:02:44]}  d6 {[%clk 0:01:44]} 14. Rd3 {[%clk 0:02:28]}  O-O {[%clk 0:01:37]} 15. f4 {[%clk 0:02:23]}  Bxc3 {[%clk 0:01:36]} 16. Rxc3 {[%clk 0:02:24]}  Qe7 {[%clk 0:01:31]} 17. Rd1 {[%clk 0:02:13]}  Bb7 {[%clk 0:01:28]} 18. Bf3 {[%clk 0:02:09]}  a5 {[%clk 0:01:07]} 19. Qxd6 {[%clk 0:02:01]}  Qxd6 {[%clk 0:01:06]} 20. Rxd6 {[%clk 0:02:02]}  Bxe4 {[%clk 0:01:02]} 21. Bxb6 {[%clk 0:01:24]}  Bxf3 {[%clk 0:01:00]} 22. Rxf3 {[%clk 0:01:25]}  Nd5 {[%clk 0:00:59]} 23. Bd4 {[%clk 0:01:20]}  Rb4 {[%clk 0:00:59]} 24. c3 {[%clk 0:01:20]}  Rxa4 {[%clk 0:00:59]} 25. f5 {[%clk 0:01:20]}  Re8 {[%clk 0:00:50]} 26. fxe6 {[%clk 0:01:04]}  fxe6 {[%clk 0:00:51]} 27. Rd7 {[%clk 0:01:01]}  Ne7 {[%clk 0:00:49]} 28. g4 {[%clk 0:00:54]}  Ra1+ {[%clk 0:00:41]} 29. Kg2 {[%clk 0:00:54]}  Ra2 {[%clk 0:00:38]} 30. Rf2 {[%clk 0:00:51]}  a4 {[%clk 0:00:38]} 31. Ra7 {[%clk 0:00:41]}  h6 {[%clk 0:00:36]} 32. h4 {[%clk 0:00:38]}  Ra1 {[%clk 0:00:34]} 33. Re2 {[%clk 0:00:34]}  Kf7 {[%clk 0:00:28]} 34. h5 {[%clk 0:00:31]}  Rd1 {[%clk 0:00:20]} 35. Rf2+ {[%clk 0:00:31]}  Kg8 {[%clk 0:00:20]} 36. Re2 {[%clk 0:00:28]}  Rxd4 {[%clk 0:00:11]} 37. cxd4 {[%clk 0:00:27]}  Nd5 {[%clk 0:00:12]} 38. Re5 {[%clk 0:00:22]}  Rb8 {[%clk 0:00:10]} 39. Rxa4 {[%clk 0:00:21]}  Rxb2+ {[%clk 0:00:10]} 40. Kg3 {[%clk 0:00:22]}  Rb3+ {[%clk 0:00:11]} 41. Kf2 {[%clk 0:00:21]}  Nf4 {[%clk 0:00:11]} 42. Ra8+ {[%clk 0:00:19]}  Kf7 {[%clk 0:00:09]} 43. Re4 {[%clk 0:00:19]}  Nh3+ {[%clk 0:00:10]} 44. Ke2 {[%clk 0:00:16]}  Ng5 {[%clk 0:00:11]} 45. Rf4+ {[%clk 0:00:16]}  Ke7 {[%clk 0:00:10]} 46. Ra7+ {[%clk 0:00:16]}  Kd6 {[%clk 0:00:10]} 47. Rxg7 {[%clk 0:00:16]}  Rb2+ {[%clk 0:00:09]} 48. Kd3 {[%clk 0:00:16]}  Rb3+ {[%clk 0:00:09]} 49. Kc2 {[%clk 0:00:16]}  Rg3 {[%clk 0:00:06]} 50. Rg6 {[%clk 0:00:15]}  Kd5 {[%clk 0:00:06]} 51. Rxh6 {[%clk 0:00:15]}  Nh3 {[%clk 0:00:06]} 52. Rhf6 {[%clk 0:00:08]}  Nxf4 {[%clk 0:00:04]} 53. Rxf4 {[%clk 0:00:09]}  e5 {[%clk 0:00:04]} 54. dxe5 {[%clk 0:00:09]}  Kxe5 {[%clk 0:00:05]} 55. Ra4 {[%clk 0:00:09]}  Kf6 {[%clk 0:00:05]} 56. Kd2 {[%clk 0:00:09]}  Kg5 {[%clk 0:00:06]} 57. Ke2 {[%clk 0:00:09]}  Rb3 {[%clk 0:00:06]} 58. Kf2 {[%clk 0:00:09]}  Rc3 {[%clk 0:00:07]} 59. Kg2 {[%clk 0:00:09]}  Rb3 {[%clk 0:00:07]} 60. Re4 {[%clk 0:00:08]}  Rc3 {[%clk 0:00:07]} 61. Kf2 {[%clk 0:00:08]}  Rb3 {[%clk 0:00:07]} 62. Ke2 {[%clk 0:00:08]}  Ra3 {[%clk 0:00:07]} 63. Kd2 {[%clk 0:00:08]}  Rb3 {[%clk 0:00:07]} 64. Ke2 {[%clk 0:00:08]}  Ra3 {[%clk 0:00:07]} 65. Re3 {[%clk 0:00:08]}  Ra5 {[%clk 0:00:06]} 66. Kf3 {[%clk 0:00:08]}  Rb5 {[%clk 0:00:07]} 67. Kg3 {[%clk 0:00:08]}  Rc5 {[%clk 0:00:07]} 68. Kh3 {[%clk 0:00:08]}  Rb5 {[%clk 0:00:07]} 69. Rc3 {[%clk 0:00:08]}  Rd5 {[%clk 0:00:07]} 70. h6 {[%clk 0:00:06]}  Kxh6 {[%clk 0:00:07]} 71. Kh4 {[%clk 0:00:07]}  Rd6 {[%clk 0:00:07]} 72. Rc5 {[%clk 0:00:07]}  Kg6 {[%clk 0:00:07]} 73. Rg5+ {[%clk 0:00:07]}  Kh6 {[%clk 0:00:08]} 74. Rg8 {[%clk 0:00:07]}  Kh7 {[%clk 0:00:07]} 75. Rc8 {[%clk 0:00:06]}  Kg6 {[%clk 0:00:08]} 76. Rg8+ {[%clk 0:00:05]}  Kh7 {[%clk 0:00:07]} 77. Rf8 {[%clk 0:00:05]}  Kg6 {[%clk 0:00:07]} 78. Rf5 {[%clk 0:00:06]}  Re6 {[%clk 0:00:07]} 79. Kg3 {[%clk 0:00:06]}  Rd6 {[%clk 0:00:07]} 80. Rc5 {[%clk 0:00:06]}  Rb6 {[%clk 0:00:07]} 81. Rc4 {[%clk 0:00:06]}  Ra6 {[%clk 0:00:07]} 82. Kf4 {[%clk 0:00:06]}  Rf6+ {[%clk 0:00:07]} 83. Kg3 {[%clk 0:00:07]}  Ra6 {[%clk 0:00:08]} 84. Rf4 {[%clk 0:00:06]}  Rb6 {[%clk 0:00:08]} 85. Kh4 {[%clk 0:00:06]}  Rc6 {[%clk 0:00:08]} 86. Rf5 {[%clk 0:00:07]}  Rb6 {[%clk 0:00:08]} 87. Rg5+ {[%clk 0:00:07]}  Kh6 {[%clk 0:00:09]} 88. Rh5+ {[%clk 0:00:06]}  Kg6 {[%clk 0:00:09]} 89. Rg5+ {[%clk 0:00:07]}  Kh6 {[%clk 0:00:09]} 90. Rh5+ {[%clk 0:00:07]}  Kg6 {[%clk 0:00:10]} 91. Rg5+ {[%clk 0:00:08]} 1/2-1/2

[Event "December 5 Early 2023"]
[Site "https://www.chess.com"]
[Date "2023.12.05"]
[Round "9"]
[White "Bardyk, Artem"]
[Black "Novozhilov, Semen"]
[Result "1/2-1/2"]
[Board "28"]
[TimeControl "180+1"]
[WhiteFideId "34349979"]
[BlackFideId "24289167"]
[WhiteElo "2878"]
[BlackElo "2715"]
[WhiteTeam "RUS"]
[BlackTeam "RUS"]
[WhiteClock "0:00:02"]
[BlackClock "0:00:07"]

1. e4 {[%clk 0:03:00]}  e6 {[%clk 0:02:57]} 2. d4 {[%clk 0:03:00]}  d5 {[%clk 0:02:57]} 3. Nc3 {[%clk 0:03:00]}  Nf6 {[%clk 0:02:56]} 4. Bg5 {[%clk 0:03:00]}  Bb4 {[%clk 0:02:57]} 5. exd5 {[%clk 0:02:51]}  exd5 {[%clk 0:02:55]} 6. Bd3 {[%clk 0:02:51]}  O-O {[%clk 0:02:53]} 7. Ne2 {[%clk 0:02:52]}  b6 {[%clk 0:02:49]} 8. O-O {[%clk 0:02:52]}  Bb7 {[%clk 0:02:49]} 9. Nf4 {[%clk 0:02:51]}  c6 {[%clk 0:02:41]} 10. Nce2 {[%clk 0:02:36]}  Be7 {[%clk 0:02:39]} 11. Ng3 {[%clk 0:02:27]}  h6 {[%clk 0:02:30]} 12. Bxf6 {[%clk 0:02:23]}  Bxf6 {[%clk 0:02:31]} 13. c3 {[%clk 0:02:13]}  Ba6 {[%clk 0:02:13]} 14. Re1 {[%clk 0:02:09]}  Bxd3 {[%clk 0:02:09]} 15. Nxd3 {[%clk 0:02:10]}  Nd7 {[%clk 0:02:07]} 16. Qg4 {[%clk 0:02:10]}  g6 {[%clk 0:02:04]} 17. Nb4 {[%clk 0:01:59]}  Qc7 {[%clk 0:01:44]} 18. Nh5 {[%clk 0:01:59]}  Bg5 {[%clk 0:01:36]} 19. Ng3 {[%clk 0:01:49]}  a5 {[%clk 0:01:36]} 20. Nd3 {[%clk 0:01:48]}  Rfe8 {[%clk 0:01:30]} 21. h4 {[%clk 0:01:47]}  Nf6 {[%clk 0:01:24]} 22. Qh3 {[%clk 0:01:39]}  Bd2 {[%clk 0:01:14]} 23. Rxe8+ {[%clk 0:01:36]}  Rxe8 {[%clk 0:01:15]} 24. h5 {[%clk 0:01:37]}  Kg7 {[%clk 0:01:12]} 25. hxg6 {[%clk 0:01:36]}  fxg6 {[%clk 0:01:13]} 26. Ne5 {[%clk 0:01:24]}  Bf4 {[%clk 0:01:06]} 27. Nf3 {[%clk 0:00:55]}  Bxg3 {[%clk 0:00:27]} 28. fxg3 {[%clk 0:00:56]}  c5 {[%clk 0:00:18]} 29. Rf1 {[%clk 0:00:55]}  cxd4 {[%clk 0:00:14]} 30. Nxd4 {[%clk 0:00:56]}  Qd7 {[%clk 0:00:11]} 31. Qxd7+ {[%clk 0:00:35]}  Nxd7 {[%clk 0:00:12]} 32. Rd1 {[%clk 0:00:35]}  Nc5 {[%clk 0:00:13]} 33. b4 {[%clk 0:00:16]}  Ne4 {[%clk 0:00:12]} 34. Re1 {[%clk 0:00:16]}  Rc8 {[%clk 0:00:11]} 35. bxa5 {[%clk 0:00:09]}  bxa5 {[%clk 0:00:12]} 36. Ne6+ {[%clk 0:00:09]}  Kf7 {[%clk 0:00:12]} 37. Nf4 {[%clk 0:00:09]}  Nxc3 {[%clk 0:00:13]} 38. Kh2 {[%clk 0:00:06]}  g5 {[%clk 0:00:13]} 39. Nd3 {[%clk 0:00:06]}  Ne4 {[%clk 0:00:12]} 40. Rb1 {[%clk 0:00:05]}  Rc3 {[%clk 0:00:12]} 41. Rb7+ {[%clk 0:00:05]}  Kf6 {[%clk 0:00:11]} 42. Rb6+ {[%clk 0:00:06]}  Kf5 {[%clk 0:00:12]} 43. Ne1 {[%clk 0:00:05]}  Nxg3 {[%clk 0:00:12]} 44. Rxh6 {[%clk 0:00:05]}  g4 {[%clk 0:00:08]} 45. Rh8 {[%clk 0:00:02]}  Re3 {[%clk 0:00:08]} 46. Nc2 {[%clk 0:00:02]}  Rd3 {[%clk 0:00:08]} 47. Ra8 {[%clk 0:00:03]}  Rd2 {[%clk 0:00:05]} 48. Kxg3 {[%clk 0:00:02]}  Rxc2 {[%clk 0:00:05]} 49. Rxa5 {[%clk 0:00:03]}  Ke4 {[%clk 0:00:06]} 50. Kxg4 {[%clk 0:00:02]}  Rxg2+ {[%clk 0:00:06]} 51. Kh3 {[%clk 0:00:03]}  Rg8 {[%clk 0:00:07]} 52. a4 {[%clk 0:00:02]}  d4 {[%clk 0:00:07]} 53. Ra7 {[%clk 0:00:02]}  Ke3 {[%clk 0:00:07]} 54. Rd7 {[%clk 0:00:02]}  Kd2 {[%clk 0:00:08]} 55. Rxd4+ {[%clk 0:00:02]}  Kc3 {[%clk 0:00:08]} 56. Rg4 {[%clk 0:00:02]}  Rxg4 {[%clk 0:00:07]} 1/2-1/2

[Event "December 5 Early 2023"]
[Site "https://www.chess.com"]
[Date "2023.12.05"]
[Round "9"]
[White "Prohaszka, Peter"]
[Black "Finek, Vaclav"]
[Result "1/2-1/2"]
[Board "31"]
[TimeControl "180+1"]
[WhiteFideId "726265"]
[BlackFideId "23718293"]
[WhiteElo "2682"]
[BlackElo "2841"]
[WhiteTeam "HUN"]
[BlackTeam "CZE"]
[WhiteClock "0:00:09"]
[BlackClock "0:00:14"]

1. e4 {[%clk 0:02:56]}  c5 {[%clk 0:03:00]} 2. Nf3 {[%clk 0:02:55]}  g6 {[%clk 0:03:00]} 3. h4 {[%clk 0:02:53]}  d5 {[%clk 0:02:49]} 4. e5 {[%clk 0:02:27]}  Bg4 {[%clk 0:02:40]} 5. c3 {[%clk 0:02:11]}  Nc6 {[%clk 0:02:33]} 6. Bb5 {[%clk 0:02:11]}  Qb6 {[%clk 0:02:30]} 7. Qa4 {[%clk 0:01:56]}  Bxf3 {[%clk 0:02:28]} 8. gxf3 {[%clk 0:01:38]}  a6 {[%clk 0:02:22]} 9. Bxc6+ {[%clk 0:01:38]}  Qxc6 {[%clk 0:02:23]} 10. Qxc6+ {[%clk 0:01:34]}  bxc6 {[%clk 0:02:24]} 11. d3 {[%clk 0:01:16]}  h5 {[%clk 0:02:22]} 12. Ke2 {[%clk 0:01:08]}  e6 {[%clk 0:02:20]} 13. Nd2 {[%clk 0:00:59]}  Nh6 {[%clk 0:02:18]} 14. Nf1 {[%clk 0:00:59]}  Nf5 {[%clk 0:02:17]} 15. Bg5 {[%clk 0:00:59]}  Be7 {[%clk 0:02:13]} 16. Ne3 {[%clk 0:00:55]}  Bxg5 {[%clk 0:02:07]} 17. hxg5 {[%clk 0:00:48]}  Rb8 {[%clk 0:02:05]} 18. Rab1 {[%clk 0:00:48]}  Kd7 {[%clk 0:02:00]} 19. Nxf5 {[%clk 0:00:47]}  exf5 {[%clk 0:01:57]} 20. b3 {[%clk 0:00:34]}  Ke6 {[%clk 0:01:56]} 21. d4 {[%clk 0:00:30]}  f4 {[%clk 0:01:49]} 22. dxc5 {[%clk 0:00:20]}  Kxe5 {[%clk 0:01:47]} 23. Kd3 {[%clk 0:00:20]}  Kf5 {[%clk 0:01:48]} 24. Rhg1 {[%clk 0:00:18]}  Rbe8 {[%clk 0:01:41]} 25. b4 {[%clk 0:00:18]}  Re5 {[%clk 0:01:32]} 26. a4 {[%clk 0:00:14]}  Rb8 {[%clk 0:01:23]} 27. Rb2 {[%clk 0:00:12]}  Re7 {[%clk 0:01:18]} 28. Kd4 {[%clk 0:00:10]}  f6 {[%clk 0:01:09]} 29. gxf6 {[%clk 0:00:09]}  Kxf6 {[%clk 0:01:10]} 30. b5 {[%clk 0:00:09]}  axb5 {[%clk 0:01:00]} 31. axb5 {[%clk 0:00:10]}  cxb5 {[%clk 0:01:01]} 32. Rgb1 {[%clk 0:00:10]}  h4 {[%clk 0:00:54]} 33. Rxb5 {[%clk 0:00:09]}  Rxb5 {[%clk 0:00:54]} 34. Rxb5 {[%clk 0:00:10]}  h3 {[%clk 0:00:55]} 35. Rb1 {[%clk 0:00:08]}  Rh7 {[%clk 0:00:38]} 36. Kxd5 {[%clk 0:00:07]}  h2 {[%clk 0:00:38]} 37. Rh1 {[%clk 0:00:07]}  Ke7 {[%clk 0:00:36]} 38. Ke5 {[%clk 0:00:05]}  Rh4 {[%clk 0:00:31]} 39. c6 {[%clk 0:00:04]}  Kd8 {[%clk 0:00:22]} 40. Kf6 {[%clk 0:00:04]}  Kc7 {[%clk 0:00:21]} 41. Kxg6 {[%clk 0:00:05]}  Rh3 {[%clk 0:00:21]} 42. Kf5 {[%clk 0:00:04]}  Rxf3 {[%clk 0:00:20]} 43. Rxh2 {[%clk 0:00:04]}  Rxc3 {[%clk 0:00:18]} 44. Kxf4 {[%clk 0:00:03]}  Rxc6 {[%clk 0:00:18]} 45. Kg5 {[%clk 0:00:03]}  Kd7 {[%clk 0:00:17]} 46. f4 {[%clk 0:00:03]}  Ke7 {[%clk 0:00:18]} 47. Rh7+ {[%clk 0:00:02]}  Kf8 {[%clk 0:00:18]} 48. Ra7 {[%clk 0:00:01]}  Rc5+ {[%clk 0:00:14]} 49. f5 {[%clk 0:00:02]}  Rc6 {[%clk 0:00:15]} 50. Rb7 {[%clk 0:00:02]}  Ra6 {[%clk 0:00:14]} 51. Rd7 {[%clk 0:00:03]}  Rc6 {[%clk 0:00:14]} 52. Rh7 {[%clk 0:00:03]}  Rb6 {[%clk 0:00:14]} 53. Rh8+ {[%clk 0:00:04]}  Kg7 {[%clk 0:00:13]} 54. Ra8 {[%clk 0:00:05]}  Kf7 {[%clk 0:00:13]} 55. Ra7+ {[%clk 0:00:05]}  Kf8 {[%clk 0:00:14]} 56. Ra5 {[%clk 0:00:06]}  Rc6 {[%clk 0:00:14]} 57. Re5 {[%clk 0:00:06]}  Rb6 {[%clk 0:00:14]} 58. Re4 {[%clk 0:00:07]}  Rc6 {[%clk 0:00:14]} 59. Rg4 {[%clk 0:00:07]}  Rd6 {[%clk 0:00:15]} 60. Kh5 {[%clk 0:00:08]}  Kf7 {[%clk 0:00:15]} 61. Kg5 {[%clk 0:00:08]}  Rb6 {[%clk 0:00:14]} 62. Rh4 {[%clk 0:00:08]}  Rc6 {[%clk 0:00:15]} 63. Rh1 {[%clk 0:00:08]}  Rb6 {[%clk 0:00:14]} 64. Rd1 {[%clk 0:00:09]}  Kf8 {[%clk 0:00:13]} 65. Rd7 {[%clk 0:00:08]}  Ra6 {[%clk 0:00:13]} 66. Rh7 {[%clk 0:00:08]}  Rb6 {[%clk 0:00:13]} 67. Ra7 {[%clk 0:00:08]}  Rc6 {[%clk 0:00:14]} 68. Kf4 {[%clk 0:00:09]}  Rc4+ {[%clk 0:00:13]} 69. Ke5 {[%clk 0:00:09]}  Rc6 {[%clk 0:00:14]} 70. Rd7 {[%clk 0:00:09]}  Rb6 {[%clk 0:00:14]} 71. Rd1 {[%clk 0:00:08]}  Ra6 {[%clk 0:00:14]} 72. Rh1 {[%clk 0:00:08]}  Ra5+ {[%clk 0:00:13]} 73. Kf6 {[%clk 0:00:08]}  Ra6+ {[%clk 0:00:14]} 74. Kg5 {[%clk 0:00:09]}  Rb6 {[%clk 0:00:14]} 75. Rh2 {[%clk 0:00:09]}  Ra6 {[%clk 0:00:13]} 76. Rh7 {[%clk 0:00:09]}  Rb6 {[%clk 0:00:14]} 1/2-1/2

[Event "December 5 Early 2023"]
[Site "https://www.chess.com"]
[Date "2023.12.05"]
[Round "9"]
[White "Bacrot, Etienne"]
[Black "Goryachkina, Aleksandra"]
[Result "1-0"]
[Board "32"]
[TimeControl "180+1"]
[WhiteFideId "605506"]
[BlackFideId "4147103"]
[WhiteElo "2834"]
[BlackElo "2675"]
[WhiteTeam "FRA"]
[BlackTeam "FID"]
[WhiteClock "0:00:26"]
[BlackClock "0:00:00"]

1. e4 {[%clk 0:02:57]}  c5 {[%clk 0:02:59]} 2. Nf3 {[%clk 0:02:57]}  e6 {[%clk 0:03:00]} 3. d4 {[%clk 0:02:57]}  cxd4 {[%clk 0:02:59]} 4. Nxd4 {[%clk 0:02:57]}  Nc6 {[%clk 0:02:59]} 5. Nb5 {[%clk 0:02:57]}  Nf6 {[%clk 0:02:55]} 6. Bf4 {[%clk 0:02:51]}  e5 {[%clk 0:02:39]} 7. Bg5 {[%clk 0:02:51]}  d6 {[%clk 0:02:34]} 8. N1c3 {[%clk 0:02:41]}  a6 {[%clk 0:02:25]} 9. Na3 {[%clk 0:02:40]}  b5 {[%clk 0:02:22]} 10. Nd5 {[%clk 0:02:32]}  Be7 {[%clk 0:02:22]} 11. Bxf6 {[%clk 0:02:30]}  Bxf6 {[%clk 0:02:20]} 12. g3 {[%clk 0:02:31]}  O-O {[%clk 0:02:15]} 13. Bg2 {[%clk 0:02:31]}  Rb8 {[%clk 0:02:07]} 14. O-O {[%clk 0:02:30]}  Be7 {[%clk 0:02:05]} 15. c3 {[%clk 0:02:28]}  Be6 {[%clk 0:02:04]} 16. Nc2 {[%clk 0:02:28]}  g6 {[%clk 0:02:00]} 17. Qd2 {[%clk 0:02:19]}  Bg5 {[%clk 0:01:51]} 18. Qd3 {[%clk 0:02:17]}  Bh6 {[%clk 0:01:43]} 19. Rad1 {[%clk 0:02:16]}  Rb7 {[%clk 0:01:29]} 20. f4 {[%clk 0:01:53]}  Rd7 {[%clk 0:01:16]} 21. f5 {[%clk 0:01:45]}  Bxd5 {[%clk 0:01:16]} 22. Qxd5 {[%clk 0:01:45]}  Ne7 {[%clk 0:00:56]} 23. Qb3 {[%clk 0:01:45]}  Qc7 {[%clk 0:00:25]} 24. Kh1 {[%clk 0:01:35]}  Nc6 {[%clk 0:00:20]} 25. Bh3 {[%clk 0:01:18]}  Na5 {[%clk 0:00:16]} 26. Qd5 {[%clk 0:01:18]}  Rdd8 {[%clk 0:00:14]} 27. Nb4 {[%clk 0:01:09]}  Nc4 {[%clk 0:00:12]} 28. fxg6 {[%clk 0:00:55]}  hxg6 {[%clk 0:00:13]} 29. Rf6 {[%clk 0:00:55]}  Kg7 {[%clk 0:00:12]} 30. Rdf1 {[%clk 0:00:32]}  Ne3 {[%clk 0:00:09]} 31. Qd3 {[%clk 0:00:32]}  Nxf1 {[%clk 0:00:08]} 32. Rxf1 {[%clk 0:00:32]}  a5 {[%clk 0:00:06]} 33. Nd5 {[%clk 0:00:32]}  Qc4 {[%clk 0:00:06]} 34. Qf3 {[%clk 0:00:29]}  f6 {[%clk 0:00:04]} 35. Be6 {[%clk 0:00:29]}  Qc5 {[%clk 0:00:04]} 36. Qg4 {[%clk 0:00:28]}  b4 {[%clk 0:00:01]} 37. Bf5 {[%clk 0:00:26]}  g5 {[%clk 0:00:00]} 38. Qh5 {[%clk 0:00:26]} 1-0

[Event "December 5 Early 2023"]
[Site "https://www.chess.com"]
[Date "2023.12.05"]
[Round "9"]
[White "Banzea, Alexandru-Bogdan"]
[Black "Rustemov, Alexander"]
[Result "0-1"]
[Board "33"]
[TimeControl "180+1"]
[WhiteFideId "1232622"]
[BlackFideId "4119002"]
[WhiteElo "2667"]
[BlackElo "2829"]
[WhiteTeam "ROU"]
[BlackTeam "RUS"]
[WhiteClock "0:00:00"]
[BlackClock "0:00:33"]

1. d4 {[%clk 0:03:00]}  d5 {[%clk 0:02:59]} 2. Nc3 {[%clk 0:03:01]}  Nf6 {[%clk 0:02:58]} 3. Bf4 {[%clk 0:03:02]}  a6 {[%clk 0:02:57]} 4. e3 {[%clk 0:03:02]}  e6 {[%clk 0:02:56]} 5. Nf3 {[%clk 0:02:57]}  c5 {[%clk 0:02:55]} 6. dxc5 {[%clk 0:02:49]}  Bxc5 {[%clk 0:02:54]} 7. Bd3 {[%clk 0:02:49]}  O-O {[%clk 0:02:49]} 8. O-O {[%clk 0:02:49]}  Nc6 {[%clk 0:02:48]} 9. e4 {[%clk 0:02:49]}  h6 {[%clk 0:02:35]} 10. e5 {[%clk 0:02:36]}  Nd7 {[%clk 0:02:32]} 11. Qd2 {[%clk 0:02:11]}  f6 {[%clk 0:02:32]} 12. exf6 {[%clk 0:01:39]}  Qxf6 {[%clk 0:02:32]} 13. Bg3 {[%clk 0:01:40]}  Nde5 {[%clk 0:02:13]} 14. Nxe5 {[%clk 0:01:28]}  Nxe5 {[%clk 0:02:14]} 15. Rae1 {[%clk 0:01:28]}  Nxd3 {[%clk 0:02:07]} 16. Qxd3 {[%clk 0:01:28]}  Qf5 {[%clk 0:01:49]} 17. Be5 {[%clk 0:01:15]}  Qxd3 {[%clk 0:01:44]} 18. cxd3 {[%clk 0:01:16]}  Bd7 {[%clk 0:01:44]} 19. d4 {[%clk 0:01:15]}  Bb4 {[%clk 0:01:40]} 20. Re3 {[%clk 0:01:14]}  Rac8 {[%clk 0:01:38]} 21. Rg3 {[%clk 0:01:12]}  Rf7 {[%clk 0:01:37]} 22. Re1 {[%clk 0:01:12]}  Bxc3 {[%clk 0:01:31]} 23. bxc3 {[%clk 0:01:07]}  Ba4 {[%clk 0:01:30]} 24. Re2 {[%clk 0:01:01]}  b5 {[%clk 0:01:27]} 25. h4 {[%clk 0:00:59]}  Kh7 {[%clk 0:01:27]} 26. h5 {[%clk 0:00:52]}  Bd1 {[%clk 0:01:26]} 27. Ree3 {[%clk 0:00:49]}  Bxh5 {[%clk 0:01:26]} 28. Rh3 {[%clk 0:00:45]}  Bg4 {[%clk 0:01:25]} 29. Rh4 {[%clk 0:00:43]}  Bf5 {[%clk 0:01:23]} 30. f3 {[%clk 0:00:37]}  Rc4 {[%clk 0:01:22]} 31. g4 {[%clk 0:00:35]}  Bg6 {[%clk 0:01:21]} 32. f4 {[%clk 0:00:29]}  b4 {[%clk 0:01:12]} 33. cxb4 {[%clk 0:00:30]}  Rxb4 {[%clk 0:01:12]} 34. g5 {[%clk 0:00:25]}  h5 {[%clk 0:01:09]} 35. Rh2 {[%clk 0:00:17]}  Rfb7 {[%clk 0:01:06]} 36. Rf2 {[%clk 0:00:04]}  Bf5 {[%clk 0:01:03]} 37. Kh2 {[%clk 0:00:04]}  Kg6 {[%clk 0:01:03]} 38. Kg3 {[%clk 0:00:04]}  Rb1 {[%clk 0:00:57]} 39. Rc3 {[%clk 0:00:02]}  Rg1+ {[%clk 0:00:55]} 40. Rg2 {[%clk 0:00:02]}  Rxg2+ {[%clk 0:00:52]} 41. Kxg2 {[%clk 0:00:03]}  h4 {[%clk 0:00:47]} 42. Rc7 {[%clk 0:00:03]}  Rb2+ {[%clk 0:00:42]} 43. Kf3 {[%clk 0:00:00]}  Kh5 {[%clk 0:00:33]} 0-1